fUST/lending_fUST_20260202
["ID","MTS","AMOUNT","RATE_DAILY","PERIOD"]
[404249240,1770001843575,-251.11897888,0.00041719,2]
[404249242,1770001843583,-260.4103811,0.00041719,2]
[404249244,1770001843592,-215.52466405,0.00041719,2]
[404249246,1770001843601,-200.0,0.00042,120]
[404249248,1770001843610,-204.78,0.00042,30]
[404249250,1770001843620,-502.51,0.000428,120]
[404249252,1770001843629,-151.0,0.000428,120]
[404249254,1770001843638,-162.253299,0.000428,120]
[404249256,1770001843647,-162.253299,0.000428,120]
[404249258,1770001843656,-162.253299,0.000428,120]
[404249260,1770001843665,-162.253295,0.000428,120]
[404249262,1770001843674,-151.0,0.000428,120]
[404249264,1770001843683,-151.0,0.000428,120]
[404249266,1770001843692,-151.0,0.000428,120]
[404249268,1770001843700,-205.429598,0.000428,120]
[404249270,1770001843709,-205.429598,0.000428,120]
[404249271,1770001843719,-205.429598,0.000428,120]
[404249273,1770001843727,-205.429603,0.000428,120]
[404249275,1770001843736,-151.0,0.000428,120]
[404249277,1770001843745,-151.0,0.000428,120]
[404249279,1770001843754,-151.0,0.000428,120]
[404249281,1770001843763,-8153.58693263,0.0004309,3]
[404249283,1770001843772,-740.75809701,0.0004309,3]
[404249285,1770001843782,-5248.14,0.000431,14]
[404249287,1770001843791,-151.0,0.0004348,120]
[404249289,1770001843800,-151.0,0.0004348,120]
[404249291,1770001843809,-622.444971,0.0004348,120]
[404249293,1770001843821,-622.444971,0.0004348,120]
[404249295,1770001843830,-622.444971,0.0004348,120]
[404249297,1770001843840,-622.444971,0.0004348,120]
[404249299,1770001843849,-190.947704,0.0004348,120]
[404249301,1770001843858,-190.947704,0.0004348,120]
[404249303,1770001843867,-151.0,0.0004348,120]
[404249305,1770001843876,-190.947704,0.0004348,120]
[404249307,1770001843885,-151.0,0.0004348,120]
[404249309,1770001843894,-190.947704,0.0004348,120]
[404249311,1770001843903,-208.711625,0.0004348,120]
[404249313,1770001843912,-33406.44060017,0.000435,120]
[404249315,1770001843921,-151.0,0.000435,120]
[404249317,1770001843930,-151.0,0.000435,120]
[404249319,1770001843939,-151.0,0.000435,120]
[404249321,1770001843948,-622.444971,0.000435,120]
[404249323,1770001843958,-622.444971,0.000435,120]
[404249325,1770001843967,-622.444971,0.000435,120]
[404249327,1770001843977,-622.444967,0.000435,120]
[404249328,1770001843989,-245.65589656,0.000438,30]
[404249330,1770001843999,-200.0,0.00044,120]
[404249332,1770001844009,-390.61448153,0.000449,120]
[404249334,1770001844019,-8153.58693263,0.0004499,3]
[404249336,1770001844030,-470.16731661,0.00045,120]
[404249338,1770001844039,-882.78295617,0.00045,20]
[404249341,1770001844048,-548.31061575,0.00045,30]
[404249343,1770001844060,-363.46028989,0.00045,120]
[404249345,1770001844072,-306.00467922,0.00045,120]
[404249347,1770001844081,-593.78161668,0.000454,120]
[404249349,1770001844091,-580.7,0.000454,30]
[404249351,1770001844100,-200.0,0.00046,120]
[404249353,1770001844110,-459.49975485,0.00046,30]
[404249355,1770001844120,-260.32637391,0.00047,120]
[404249357,1770001844130,-733.47588229,0.00047251,2]
[404249359,1770001844139,-200.0,0.00048,120]
[404249361,1770001844148,-457.1622749,0.00048,120]
[404249363,1770001844159,-197.2013981,0.00048,120]
[404249365,1770001844168,-151.0,0.00048,120]
[404249367,1770001844177,-375.77364139,0.00048751,2]
[404249369,1770001844186,-150.07589384,0.00048841,2]
[404249371,1770001844195,-316.91628312,0.00049,15]
[404249374,1770001844204,-175.0,0.00049041,120]
[404249376,1770001844215,-256.61684424,0.00049315,120]
[404249378,1770001844225,-206.03,0.0004951,2]
[404249380,1770001844234,-1976.52,0.0004998,120]
[404249382,1770001844243,-200.0,0.0005,120]
[404249384,1770001844252,-225.09333528,0.0005,20]
[404249386,1770001844263,-305.59062766,0.0005,120]
[404249388,1770001844272,-539.20959445,0.0005,10]
[404249390,1770001844281,-560.62076727,0.0005,120]
[404249392,1770001844291,-199.0,0.0005,7]
[404249394,1770001844300,-806.15776122,0.0005,120]
[404249396,1770001844309,-170.08478499,0.0005,120]
[404249398,1770001844322,-305.72424165,0.0005,120]
[404249400,1770001844331,-495.08064252,0.0005,30]
[404249402,1770001844340,-166.0,0.0005,120]
[404249404,1770001844349,-156.0,0.0005,120]
[404249405,1770001844359,-164.0,0.0005,120]
[404249407,1770001844368,-1976.52,0.00050129,120]
[404249409,1770001844378,-527.8385386,0.00050278,120]
[404249415,1770001844417,-612.99338576,0.00050278,120]
[404249417,1770001844432,-835.68807564,0.00050278,120]
[404249420,1770001844442,-166.0,0.000504,120]
[404249422,1770001844455,-1421.29271913,0.00050427,120]
[404249430,1770001844530,151.0,0.00036894,31]
[404249438,1770001844596,151.0,0.00036894,31]
[404249446,1770001844661,151.0,0.00036894,31]
[404249454,1770001844727,276.55839,0.00036894,31]
[404249493,1770001845106,-508.60921729,0.00050427,120]
[404249495,1770001845117,-46.61806358,0.00050427,120]
[404249497,1770001845127,-206.54080034,0.000505,60]
[404249499,1770001845136,-192.08384778,0.000505,60]
[404249501,1770001845145,-80.96481058,0.00050576,120]
[404249503,1770001845157,-1202.0999994,0.00050576,120]
[404249559,1770001845795,-693.45519002,0.00050576,120]
[404249561,1770001845804,-5248.14,0.000506,14]
[404249562,1770001845814,-1976.52,0.00050725,120]
[404249563,1770001845826,-166.0,0.000508,120]
[404249564,1770001845835,-1976.52,0.00050874,120]
[404249565,1770001845845,-470.40715335,0.0005099,90]
[404249566,1770001845854,-284.76592842,0.00050999,2]
[404249567,1770001845864,-1139.06371367,0.00050999,2]
[404249568,1770001845873,-1976.52,0.00051023,120]
[404249570,1770001845882,-1976.52,0.00051172,120]
[404249571,1770001845892,-179.63947635,0.000512,120]
[404249572,1770001845901,-166.0,0.000512,120]
[404249573,1770001845911,-1976.52,0.00051321,120]
[404249574,1770001845920,-1976.52,0.0005147,120]
[404249575,1770001845930,-166.0,0.000516,120]
[404249576,1770001845939,-1976.52,0.00051619,120]
[404249577,1770001845949,-1976.52,0.00051767,120]
[404249578,1770001845958,-1976.52,0.00051916,120]
[404249579,1770001845968,-250.0,0.00051945,120]
[404249580,1770001845977,-200.0,0.00052,120]
[404249581,1770001845987,-166.0,0.00052,120]
[404249582,1770001846000,-1976.52,0.00052065,120]
[404249583,1770001846010,-1685.32853819,0.00052204,4]
[404249584,1770001846061,-6468.25839444,0.00052204,4]
[404249585,1770001846072,-1976.52,0.00052214,120]
[404249586,1770001846082,-1976.52,0.00052363,120]
[404249587,1770001846091,-166.0,0.000524,120]
[404249588,1770001846101,-4201.72814752,0.000525,120]
[404249589,1770001846111,-293.558624,0.000525,120]
[404249590,1770001846120,-1976.52,0.00052512,120]
[404249591,1770001846129,-1976.52,0.00052661,120]
[404249592,1770001846138,-166.0,0.000528,120]
[404249593,1770001846147,-1976.52,0.0005281,120]
[404249594,1770001846157,-1956.72,0.00052959,120]
[404249595,1770001846166,-166.49,0.00052966,98]
[404249596,1770001846175,-166.0,0.000532,120]
[404249597,1770001846185,-166.0,0.000536,120]
[404249598,1770001846195,-691.61422602,0.00053683,5]
[404249599,1770001846204,-5248.14,0.000537,14]
[404249600,1770001846294,-200.0,0.00054,120]
[404249601,1770001846304,-166.0,0.00054,120]
[404249602,1770001846313,-166.0,0.000544,120]
[404249603,1770001846325,-3000.0,0.000545,120]
[404249604,1770001846335,-250.0,0.00054685,120]
[404249605,1770001846345,-24460.7607979,0.0005479,4]
[404249606,1770001846354,-200.0,0.00054794,120]
[404249607,1770001846364,-200.0,0.00054794,120]
[404249608,1770001846374,-206.6375076,0.00054794,120]
[404249609,1770001846383,-500.0,0.00054794,120]
[404249610,1770001846394,-500.0,0.00054794,120]
[404249611,1770001846405,-1068.53099223,0.00054794,2]
[404249612,1770001846414,-261.05753253,0.00054794,120]
[404249613,1770001846424,-1000.0,0.00054794,120]
[404249614,1770001846433,-500.0,0.00054794,2]
[404249615,1770001846443,-201.93286099,0.00054794,120]
[404249616,1770001846452,-250.0,0.00054795,120]
[404249617,1770001846461,-151.0,0.00054795,120]
[404249618,1770001846471,-151.000009,0.00054795,120]
[404249619,1770001846481,-151.07,0.00054797,14]
[404249620,1770001846491,-166.0,0.000548,120]
[404249621,1770001846500,-87702.84357675,0.000548,120]
[404249622,1770001846512,-8706.25207713,0.000548,120]
[404249623,1770001960126,217.06728141,0.00036894,120]
[404249625,1770002129113,-300.0,0.00013272,2]
[404249626,1770002129138,-405.0,0.00013272,2]
[404249627,1770002129162,-518.26065093,0.00013273,2]
[404249628,1770002129187,-514.42107936,0.00013273,2]
[404249629,1770002129211,-501.43600616,0.00013273,2]
[404249630,1770002129235,-508.39514078,0.00013273,2]
[404249631,1770002129258,-501.78460381,0.00013273,2]
[404249632,1770002129282,-507.88581487,0.00013273,2]
[404249633,1770002129306,-500.0,0.00013273,2]
[404249634,1770002129330,-511.50471037,0.00013273,2]
[404249635,1770002129353,-516.8462824,0.00013273,2]
[404249636,1770002129377,-512.22486892,0.00013699,2]
[404249637,1770002129401,-740.75809701,0.00025386,2]
[404249638,1770002129424,-1041.66666667,0.00025386,2]
[404249639,1770002129451,-499.99999997,0.00036914,7]
[404249640,1770002129477,-5000.0,0.00036915,20]
[404249641,1770002129502,-4813.63851013,0.00036915,20]
[404249642,1770002129527,-508.5145,0.00036915,14]
[404249643,1770002129553,-507.8555,0.00036915,20]
[404249644,1770002129580,-150.06955529,0.00037262,2]
[404249645,1770002129699,-464.971459,0.0005,120]
[404249646,1770002129725,-213.0,0.0005,120]
[404249647,1770002129751,-3000.0,0.000545,120]
[404249648,1770002129774,-3000.0,0.000545,120]
[404249649,1770002129798,-2841.12200637,0.00054699,28]
[404249650,1770002129822,-166.49,0.00054794,103]
[404249651,1770002129849,-500.0,0.00054794,120]
[404249652,1770002129874,-20754.15454796,0.00054799,120]
[404249653,1770002130827,-472.52142293,0.00054699,2]
[404249654,1770002130851,-6521.05269597,0.00054799,120]
[404249655,1770002130876,-415.47049329,0.00054799,120]
[404249656,1770002130902,-201.93286099,0.00054799,120]
[404249657,1770002130926,-15735.22976178,0.000549,120]
[404249658,1770002130951,-524.1181903,0.00055,120]
[404249659,1770002130975,-262.27,0.00055123,120]
[404249660,1770002130998,-166.0,0.000552,120]
[404249661,1770002131022,-166.0,0.000556,120]
[404249662,1770002131047,-352.69,0.0005585,14]
[404249663,1770002131074,-200.0,0.00056,120]
[404249664,1770002131101,-166.0,0.00056,120]
[404249665,1770002131128,-166.0,0.000564,120]
[404249666,1770002131154,-646.53741742,0.00056698,5]
[404249667,1770002131178,-166.0,0.000569,120]
[404249668,1770002131203,-1300.0,0.00057,120]
[404249669,1770002131229,-166.0,0.000573,120]
[404249670,1770002131256,-209.40437684,0.00057499,2]
[404249671,1770002131284,-217.15233878,0.00057499,2]
[404249672,1770002131310,-225.18697532,0.00057499,2]
[404249673,1770002131336,-233.51889341,0.00057499,2]
[404249674,1770002131365,-242.15909246,0.00057499,2]
[404249675,1770002131391,-251.11897888,0.00057499,2]
[404249676,1770002131417,-260.4103811,0.00057499,2]
[404249677,1770002131442,-270.0455652,0.00057499,2]
[404249678,1770002131470,-280.03725112,0.00057499,2]
[404249679,1770002131496,-290.39862941,0.00057499,2]
[404249680,1770002131522,-301.1433787,0.00057499,2]
[404249681,1770002131549,-500.0,0.00057534,120]
[404249682,1770002131575,-1000.0,0.00057534,120]
[404249683,1770002131601,-618.21497842,0.00057534,2]
[404249684,1770002131627,-582.83816296,0.00057534,120]
[404249685,1770002131651,-215.0,0.000577,120]
[404249686,1770002131677,-166.0,0.000577,120]
[404249687,1770002131702,-533.88981491,0.00057999,60]
[404249688,1770002131727,-194.72792766,0.00057999,60]
[404249689,1770002131750,-163.52584249,0.00058,120]
[404249690,1770002131775,-200.0,0.00058,120]
[404249691,1770002131799,-166.0,0.000581,120]
[404249692,1770002131822,-166.0,0.000585,120]
[404249693,1770002131848,-166.0,0.000589,120]
[404249694,1770002131873,-172.22028526,0.00058998,2]
[404249695,1770002131897,-215.0,0.00059,120]
[404249696,1770002131921,-274.80105351,0.0005906,5]
[404249697,1770002131944,-166.0,0.000593,120]
[404249698,1770002131968,-514.84070869,0.00059659,30]
[404249699,1770002131992,-187.78006525,0.00059659,30]
[404249700,1770002132017,-166.0,0.000597,120]
[404249701,1770002132045,-496.47127164,0.00059899,120]
[404249702,1770002132070,-181.08010149,0.00059899,120]
[404249703,1770002132095,-1844.2653397,0.000599,120]
[404249704,1770002132117,-1000.0,0.00059999,120]
[404249705,1770002132142,-200.0,0.0006,120]
[404249706,1770002132232,-915.72051398,0.0006,120]
[404249707,1770002132265,-166.0,0.000601,120]
[404249708,1770002132292,-500.0,0.00060273,120]
[404249709,1770002132325,-1000.0,0.00060273,120]
[404249710,1770002132361,-166.0,0.000605,120]
[404249711,1770002132386,-166.0,0.000609,120]
[404249712,1770002132412,-150.06955529,0.00060984,2]
[404249713,1770002132440,-166.0,0.000613,120]
[404249714,1770002132468,-1998.709615,0.0006158,30]
[404249715,1770002132492,-1217.303442,0.0006158,30]
[404249716,1770002132517,-199.109002,0.000616,2]
[404249717,1770002132544,-1000.0,0.000616,30]
[404249718,1770002132569,-1000.0,0.000616,30]
[404249719,1770002132596,-502.07986735,0.0006169,77]
[404249720,1770002132629,-353.9537485,0.0006169,77]
[404249721,1770002132659,-146.0462515,0.0006169,77]
[404249722,1770002132686,-461.67526834,0.00061699,60]
[404249723,1770002132710,-478.75725327,0.00061699,120]
[404249724,1770002132737,-168.3888056,0.00061699,60]
[404249725,1770002132762,-174.61919141,0.00061699,120]
[404249726,1770002132786,-166.0,0.000617,120]
[404249727,1770002132811,-200.0,0.00062,120]
[404249728,1770002132836,-166.0,0.000621,120]
[404249729,1770002132865,-166.0,0.000625,120]
[404249730,1770002132890,-166.0,0.000629,120]
[404249731,1770002132914,-500.0,0.00063013,120]
[404249732,1770002132938,-1000.0,0.00063013,120]
[404249733,1770002132962,-166.0,0.000633,120]
[404249734,1770002132987,-166.0,0.000637,120]
[404249735,1770002133012,-200.0,0.00064,120]
[404249736,1770002133036,-166.0,0.000641,120]
[404249737,1770002133060,-990.0,0.00064499,120]
[404249738,1770002133086,-3000.0,0.000645,120]
[404249739,1770002133116,-166.0,0.000645,120]
[404249740,1770002133140,-166.0,0.000649,120]
[404249741,1770002133165,-166.0,0.000653,120]
[404249742,1770002133189,-166.0,0.000657,120]
[404249743,1770002133213,-500.0,0.00065753,120]
[404249744,1770002133237,-528.42492564,0.00065753,120]
[404249745,1770002133261,-200.0,0.00066,120]
[404249746,1770002133286,-166.0,0.000661,120]
[404249747,1770002133310,-166.0,0.000665,120]
[404249748,1770002133333,-166.0,0.000669,120]
[404249749,1770002133360,-166.0,0.000673,120]
[404249750,1770002133385,-166.0,0.000677,120]
[404249751,1770002133410,-603.79,0.00068,60]
[404249752,1770002133435,-200.0,0.00068,120]
[404249753,1770002133462,-166.0,0.000681,120]
[404249754,1770002133487,-500.0,0.00068493,120]
[404249755,1770002133512,-166.0,0.000685,120]
[404249756,1770002133536,-166.0,0.000689,120]
[404249757,1770002133562,-3000.0,0.00069,120]
[404249758,1770002133589,-3000.0,0.0006901,120]
[404249759,1770002133617,-13272.0708678,0.0006901,6]
[404249760,1770002133643,-3000.0,0.0006902,120]
[404249761,1770002133669,-4925.753588,0.0006903,120]
[404249762,1770002133695,-166.0,0.000693,120]
[404249763,1770002133719,-166.0,0.000697,120]
[404249764,1770002133743,-2000.0,0.0007,120]
[404249765,1770002133767,-1000.0,0.0007,120]
[404249766,1770002133793,-200.0,0.0007,120]
[404249767,1770002133818,-166.0,0.000701,120]
[404249768,1770002133844,-166.0,0.000706,120]
[404249769,1770002133873,-166.0,0.00071,120]
[404249770,1770002133898,-293.31321556,0.00071232,120]
[404249771,1770002133923,-166.0,0.000714,120]
[404249772,1770002133949,-166.0,0.000718,120]
[404249773,1770002133974,-200.0,0.00072,120]
[404249774,1770002133999,-200.0,0.00072155,120]
[404249775,1770002134024,-166.0,0.000722,120]
[404249776,1770002134049,-166.0,0.000726,120]
[404249777,1770002134146,-150.06955529,0.00072845,2]
[404249778,1770002134171,-780.0,0.000729,30]
[404249779,1770002134196,-166.0,0.00073,120]
[404249780,1770002134219,-166.0,0.000734,120]
[404249781,1770002134244,-166.0,0.000738,120]
[404249782,1770002134268,-200.0,0.00074,120]
[404249783,1770002134293,-166.0,0.000742,120]
[404249784,1770002134317,-166.0,0.000746,120]
[404249785,1770002134341,-166.0,0.00075,120]
[404249786,1770002134367,-166.0,0.000754,120]
[404249787,1770002134390,-2117.09107759,0.00075444,120]
[404249788,1770002134438,-9771.55187088,0.00075444,120]
[404249789,1770002134464,-166.0,0.000758,120]
[404249790,1770002134489,-200.0,0.00076,120]
[404249791,1770002134516,-166.0,0.000762,120]
[404249792,1770002134543,-166.0,0.000766,120]
[404249793,1770002134569,-209.0,0.00077,120]
[404249794,1770002134598,-200.0,0.00078,120]
[404249795,1770002134624,-583.37247308,0.0007919,2]
[404249796,1770002134649,-13272.0708678,0.0007999,7]
[404249797,1770002134673,-2000.0,0.0008,120]
[404249798,1770002134699,-6000.0,0.0008,120]
[404249799,1770002134723,-501.42088819,0.0008,60]
[404249800,1770002134748,-200.0,0.0008,120]
[404249801,1770002134771,-681.66120942,0.0008,50]
[404249802,1770002134795,-161.0,0.0008,120]
[404249803,1770002134823,-1740.719198,0.0008,120]
[404249804,1770002134851,-2119.2904483,0.0008188,120]
[404249805,1770002134877,-200.0,0.00081891,120]
[404249806,1770002134902,-200.0,0.00082,120]
[404249807,1770002134928,-166.49,0.00082397,120]
[404249808,1770002134955,-8504.53874782,0.000835,120]
[404249809,1770002134981,-200.0,0.00083597,120]
[404249810,1770002135016,-200.0,0.00084,120]
[404249811,1770002135050,-150.06955529,0.00084706,2]
[404249812,1770002135082,-465.22,0.000848,60]
[404249813,1770002135121,-200.0,0.00086873,120]
[404249814,1770002135155,-501.21293941,0.00089087,120]
[404249815,1770002135188,-1074.38180181,0.0009,120]
[404249816,1770002135309,-150.0,0.00057534,120]
[404249817,1770002135342,-177.0,0.00059534,120]
[404249818,1770002135382,-204.0,0.00061534,120]
[404249819,1770002135413,-231.0,0.00063534,120]
[404249820,1770002135445,-258.0,0.00065534,120]
[404249821,1770002135478,-472.52142293,0.000748,2]
[404249822,1770002135511,-3815.78942766,0.0009,120]
[404249823,1770002135544,-1103.18662019,0.0009,120]
[404249824,1770002135578,-200.0,0.0009,120]
[404249825,1770002135606,-200.0,0.00094,120]
[404249826,1770002135638,-6152.31294782,0.0009488,60]
[404249827,1770002135672,-1061.0,0.00095,120]
[404249828,1770002135701,-200.0,0.0009569,120]
[404249829,1770002135733,-150.06955529,0.00096567,2]
[404249830,1770002135763,-6069.21271911,0.000975,30]
[404249831,1770002135791,-13272.0708678,0.0009869,13]
[404249832,1770002135819,-200.0,0.00098852,120]
[404249833,1770002135848,-424.95,0.00099311,120]
[404249834,1770002135876,-1000.0,0.001,120]
[404249835,1770002135906,-200.0,0.001,60]
[404249836,1770002135935,-3283.8,0.001,120]
[404249837,1770002135960,-200.0,0.001,120]
[404249838,1770002135987,-543.33499682,0.001,120]
[404249839,1770002136017,285.0,0.00067534,120]
[404249840,1770002136052,270.0,0.00069534,120]
[404249841,1770002136191,227.0,0.001,2]
[404249842,1770002139921,472.52142293,0.000949,2]
[404249843,1770002151567,5000.0,0.001,2]
[404249844,1770002160452,454.65002398,0.00019089,2]
[404249845,1770002160571,303.10001603,0.000189,2]
[404249846,1770002165359,1167.66629877,0.00099999,120]
[404249847,1770002167272,151.0,0.00099999,120]
[404249848,1770002167928,156.587,0.00099999,120]
[404249849,1770002168058,151.96396085,0.00099999,120]
[404249850,1770002168595,162.380719,0.00099999,120]
[404249851,1770002169055,414.0,0.00099999,120]
[404249852,1770002169356,168.3888056,0.00099999,120]
[404249853,1770002169727,429.318,0.00099999,120]
[404249854,1770002169963,214.11918732,0.00099999,120]
[404249855,1770002170348,404.0560079,0.00099999,120]
[404249856,1770002170377,41.14675811,0.00099999,120]
[404249857,1770002173877,5000.0,0.001,2]
[404249858,1770002196706,5000.0,0.001,2]
[404249860,1770002219866,5000.0,0.001,2]
[404249861,1770002225682,521.47594718,0.00013273,2]
[404249862,1770002241229,512.60616655,0.00013273,2]
[404249863,1770002242662,5000.0,0.001,2]
[404249864,1770002265517,5000.0,0.001,2]
[404249865,1770002273210,782.0,0.000729,30]
[404249866,1770002277099,23142.77112816,0.0007,120]
[404249867,1770002277126,3758.94895739,0.0007,120]
[404249868,1770002287999,5000.0,0.001,2]
[404249869,1770002311926,5000.0,0.001,2]
[404249870,1770002334121,5000.0,0.001,2]
[404249871,1770002335925,162.3608908,0.00088382,12]
[404249872,1770002357901,5000.0,0.001,2]
[404249873,1770002380085,5000.0,0.001,2]
[404249874,1770002402531,5000.0,0.001,2]
[404249875,1770002405253,2000.0,0.00036926,20]
[404249876,1770002424851,5000.0,0.001,2]
[404249877,1770002438156,740.75809701,0.0005,2]
[404249878,1770002438586,740.75809701,0.00036926,20]
[404249879,1770002447248,5000.0,0.001,2]
[404249880,1770002461625,740.75809701,0.00029,10]
[404249881,1770002462055,1856.41586078,0.0005,2]
[404249882,1770002462080,23143.58413922,0.0005,2]
[404249883,1770002462492,740.75809701,0.00028,7]
[404249884,1770002463573,167.06176788,0.00013273,2]
[404249885,1770002465000,740.75809701,0.00028,3]
[404249886,1770002465863,740.75809701,0.00029,10]
[404249887,1770002466106,24467.07980187,0.0007,120]
[404249888,1770002466140,3427.91122775,0.0007,120]
[404249889,1770002467628,740.75809701,0.00028,7]
[404249890,1770002468035,740.75809701,0.00028,3]
[404249891,1770002468443,740.75809701,0.00029,30]
[404249892,1770002468894,740.75809701,0.00029,10]
[404249893,1770002469347,740.75809701,0.00028,7]
[404249894,1770002469757,740.75809701,0.00028,3]
[404249895,1770002470195,5000.0,0.001,2]
[404249896,1770002493105,5000.0,0.0005,2]
[404249897,1770002516022,5000.0,0.0005,2]
[404249898,1770002531987,239.55,0.0005,120]
[404249899,1770002538452,5000.0,0.0005,2]
[404249900,1770002545728,200.0,0.0005,2]
[404249901,1770002550966,500.0,0.00049315,2]
[404249902,1770002552727,500.0,0.00049315,2]
[404249903,1770002554260,500.0,0.00049315,2]
[404249904,1770002555572,500.0,0.00049315,2]
[404249905,1770002556922,500.0,0.00049315,2]
[404249906,1770002558277,500.0,0.00049315,2]
[404249907,1770002561195,5000.0,0.0005,2]
[404249908,1770002562707,500.0,0.00030137,2]
[404249909,1770002563953,500.0,0.00030137,2]
[404249910,1770002565296,500.0,0.00030137,2]
[404249911,1770002566637,60.45,0.00030137,2]
[404249912,1770002566661,439.55,0.00030137,2]
[404249913,1770002567887,500.0,0.00030137,2]
[404249914,1770002569167,500.0,0.00030137,2]
[404249915,1770002570578,500.0,0.00030137,2]
[404249916,1770002581150,430.0,0.00030137,2]
[404249917,1770002584266,5000.0,0.00045,2]
[404249918,1770002587222,150.0,0.00045,2]
[404249919,1770002592160,295.68783459,0.00045,2]
[404249920,1770002604388,165.14,0.00045,2]
[404249921,1770002608462,5000.0,0.00045,2]
[404249922,1770002631065,5000.0,0.00045,2]
[404249923,1770002653463,5000.0,0.00045,2]
[404249924,1770002676366,2019.62216541,0.00045,2]
[404249925,1770002721767,500.0,0.00013699,2]
[404249926,1770002721815,1000.0,0.00014247,2]
[404249927,1770002721882,1500.0,0.00014795,2]
[404249928,1770002721935,1960.5246401,0.00015342,2]
[404249929,1770002731141,-205.94473084,0.000401,2]
[404249930,1770002731163,-696.8822706,0.00042753,2]
[404249931,1770002731186,-145.02100131,0.00045,2]
[404249932,1770002745132,-2835.35683328,0.00045,2]
[404249933,1770002745153,-205.94473084,0.00051993,2]
[404249934,1770002745174,-349.0,0.00054793,15]
[404249935,1770002745194,-500.0,0.00054794,120]
[404249936,1770002745213,-500.0,0.00057534,120]
[404249937,1770002745233,-257.233591,0.00060273,120]
[404249938,1770002745257,-205.94473084,0.00063986,2]
[404249939,1770002745277,-205.94473084,0.00075979,2]
[404249940,1770002745297,-315.4255907,0.00081905,120]
[404249941,1770002745316,-208.63991123,0.00081905,120]
[404249942,1770002745338,-173.3240204,0.00081972,30]
[404249943,1770002745359,-11524.56873787,0.00085,120]
[404249945,1770002762994,5000.0,0.0004,2]
[404249952,1770002785973,5000.0,0.0004,2]
[404249963,1770002792496,287.0003194,0.00029773,2]
[404249964,1770002808923,5000.0,0.0004,2]
[404249965,1770002813085,-15654.131244,0.00085,120]
[404249967,1770002830100,-6342.50956862,0.00085,120]
[404249968,1770002830120,-205.94473084,0.00099965,2]
[404249969,1770002830139,-216.36,0.001,120]
[404249970,1770002830158,-166.66666668,0.00100016,2]
[404249971,1770002830180,-162.3608908,0.00100116,17]
[404249972,1770002830201,-186.121,0.0011,120]
[404249973,1770002830221,-162.3608908,0.00111849,21]
[404249974,1770002830240,-166.66666666,0.00114958,2]
[404249975,1770002830264,-2000.0,0.00115,120]
[404249976,1770002830286,-11281.2602376,0.00116824,19]
[404249977,1770002830308,-200.0,0.00116834,120]
[404249978,1770002830331,-200.0,0.0012,120]
[404249979,1770002830351,-162.3608908,0.00123583,25]
[404249980,1770002830373,-205.94473084,0.00123951,2]